[Event "Dutch Meesterklasse 2024-25"]
[Site "Netherlands"]
[Date "2024.09.22"]
[Round "1.1"]
[White "Schoppen, Casper"]
[Black "Ten Hertog, Hugo"]
[Result "1/2-1/2"]
[ECO "D78"]
[WhiteElo "2540"]
[BlackElo "2516"]
[Annotator "TA"]
[PlyCount "119"]
[EventDate "2024.09.21"]
[EventType "team-tourn"]
[EventCountry "NED"]
[SourceTitle "playchess.com"]
[Source "ChessBase"]
[SourceQuality "1"]
[TimeControl "40/5400+30:1800+30"]

{[%evp 38,119,46,32,95,87,83,37,49,37,51,51,50,37,42,44,37,43,41,33,39,31,42,27,28,29,35,31,29,28,66,71,75,74,73,81,67,67,65,65,142,142,142,141,128,128,118,116,116,116,116,116,149,149,149,149,149,149,149,149,142,142,142,120,142,142,135,0,120,120,120,103,120,182,182,106,106,106,106,106,106,0,106,0]} 1. d4 {[%emt 0:00:09]} d5 {[%emt 0:00:25]} 2. c4 {[%emt 0:00:46]} e6 {[%emt 0:00:04]} 3. Nc3 {[%emt 0:01:38]} c6 {[%emt 0:00:16]} 4. Nf3 {[%emt 0:03:47]} Nf6 {[%emt 0:00:31]} 5. Bg5 {[%emt 0:00:56]} h6 {[%emt 0:00:45]} 6. Bxf6 {[%emt 0:01:33]} Qxf6 {[%emt 0:00:06]} 7. g3 {[%emt 0:04:48]} g6 {[%emt 0:13:31]} 8. Bg2 {[%emt 0:03:25]} Bg7 {[%emt 0:01:14]} 9. O-O {[%emt 0:06:10]} O-O {[%emt 0:00:18]} 10. Qb3 {[%emt 0:07:47] D78: Fianchetto Grünfeld: 6 0-0 c6.} Nd7 {[%emt 0:15:25]} 11. e4 {[%emt 0:04:20]} dxc4 {[%emt 0:00:56]} 12. Qxc4 {[%emt 0:00:13]} e5 {[%emt 0:00:24]} 13. d5 {[%emt 0:00:55]} Nb6 {[%emt 0:02:10]} 14. Qb3 {[%emt 0:00:36]} cxd5 {[%emt 0:17:58]} 15. exd5 {[%emt 0:00:46]} Bf5 {[%emt 0:00:10]} 16. Nd2 {[%emt 0:06:47]} Rac8 $146 {[%emt 0:00:40]} ({Predecessor:} 16... Rab8 17. Nde4 Qd8 18. Rac1 Nc8 19. d6 Be6 20. Qa3 b5 21. Qc5 f5 22. Qc7 Nb6 {1-0 Solozhenkin,E (2525)-Alawieh,A (2360) FRA-ch op FIDE 1994 (1)}) 17. a4 {[%emt 0:04:16]} a5 {[%emt 0:11:10]} 18. Qb5 {[%emt 0:08:06]} Qd6 {[%emt 0:10:49]} 19. Qxa5 {[%emt 0:03:33]} Nc4 {[%emt 0:09:41]} 20. Nde4 {[%emt 0:08:31]} Qb8 {[%emt 0:04:38]} (20... Qa6 $1 $14 21. Qxa6 bxa6) 21. Qb4 $16 {[%emt 0:03:38]} Rfd8 {[%emt 0:00:17]} 22. Rac1 {[%emt 0:03:07]} (22. a5 $16) 22... Bf8 {[%emt 0:02:58]} 23. Qb3 {[%emt 0:02:27]} Bxe4 {[%emt 0:02:51]} 24. Nxe4 {[%emt 0:00:11]} (24. Bxe4 $2 Nd2 25. Qc2 Nxf1 26. Rxf1 f5 $19) 24... Nd6 {[%emt 0:00:04]} 25. Rfd1 {[%emt 0:05:59]} Nxe4 {[%emt 0:01:28]} 26. Bxe4 {[%emt 0:00:12]} Bd6 {[%emt 0:00:11]} 27. Qb6 {[%emt 0:05:24]} Kg7 {[%emt 0:03:05]} 28. b4 {[%emt 0:01:33]} Bc7 {[%emt 0:00:06]} 29. Qb5 {[%emt 0:00:37]} Bd6 {[%emt 0:01:48]} 30. a5 {[%emt 0:01:00]} Rxc1 {[%emt 0:00:20]} 31. Rxc1 {[%emt 0:00:05]} Rc8 $1 {[%emt 0:00:04]} 32. Rc4 {[%emt 0:05:23]} Rc7 {[%emt 0:01:19]} 33. Bd3 {[%emt 0:00:36]} Rxc4 {[%emt 0:00:36]} 34. Qxc4 {[%emt 0:00:21]} Qc7 {[%emt 0:00:13]} 35. Qxc7 {[%emt 0:04:23]} Bxc7 {[%emt 0:00:06]} 36. f3 {[%emt 0:02:47]} Kf6 {[%emt 0:00:53]} 37. Kf2 {[%emt 0:00:42]} Bd6 {[%emt 0:00:35]} 38. b5 {[%emt 0:00:07]} Bb4 {[%emt 0:00:04]} ({Black should play} 38... Ke7 $14) 39. a6 $16 {[%emt 0:00:25]} bxa6 {[%emt 0:00:04]} 40. bxa6 {[%emt 0:00:05]} Bc5+ {[%emt 0:00:03]} 41. Ke2 {[%emt 0:31:45]} Ke7 {[%emt 0:31:45]} 42. Bc2 {[%emt 0:00:00]} Kd6 {[%emt 0:00:00]} 43. Kd3 {[%emt 0:00:00]} Bg1 {[%emt 0:00:00]} 44. Kc4 {[%emt 0:00:00]} Ke7 {[%emt 0:00:00]} 45. h4 {[%emt 0:00:00]} Kd6 {[%emt 0:00:00]} 46. g4 {[%emt 0:00:00]} Bf2 {[%emt 0:00:00]} 47. h5 {[%emt 0:00:00]} gxh5 {[%emt 0:00:00]} 48. gxh5 {[%emt 0:00:00]} Ba7 {[%emt 0:00:00]} 49. Bg6 {[%emt 0:00:00]} f6 {[%emt 0:00:00]} (49... fxg6 $2 {is the wrong capture.} 50. hxg6 Ke7 51. d6+ Kf6 52. d7 $18) 50. Bf5 {[%emt 0:01:59]} Bb6 {[%emt 0:00:00]} 51. Be6 {[%emt 0:00:31]} Ba7 {[%emt 0:00:00]} 52. Bf5 {[%emt 0:00:23]} Bb6 $1 {[%emt 0:00:00]} 53. Bh7 {[%emt 0:00:06]} Ba7 {[%emt 0:02:40]} 54. Bg8 {[%emt 0:02:33]} f5 {[%emt 0:04:00]} 55. Bh7 {[%emt 0:01:24]} e4 {[%emt 0:00:20] [#]} 56. fxe4 {[%emt 0:00:22]} (56. f4 $1 $18 e3 57. Kd3 (57. Bxf5 $2 {perishes.} e2 $19)) 56... fxe4 $16 {[%emt 0:00:04]} 57. Bxe4 {[%emt 0:00:06]} Bg1 {[%emt 0:00:34]} 58. Bf3 {[%emt 0:01:05]} Ba7 {[%emt 0:00:05]} 59. Be4 {[%emt 0:00:10]} Bg1 {[%emt 0:00:05]} 60. Bf3 {[%emt 0:00:16]} (60. Bg2 $16) 1/2-1/2

[Event "Dutch Meesterklasse 2024-25"]
[Site "Netherlands"]
[Date "2024.09.22"]
[Round "1.1"]
[White "Vogt, Andreas"]
[Black "Warmerdam, Max"]
[Result "0-1"]
[ECO "A42"]
[WhiteElo "2282"]
[BlackElo "2679"]
[Annotator "TA"]
[PlyCount "76"]
[EventDate "2024.09.21"]
[EventType "team-tourn"]
[EventCountry "NED"]
[SourceTitle "playchess.com"]
[Source "ChessBase"]
[SourceQuality "1"]
[TimeControl "40/5400+30:1800+30"]

{[%evp 17,76,51,56,9,10,10,15,14,40,31,29,18,20,6,0,6,19,11,25,0,25,20,25,25,27,10,23,-12,-16,-39,-35,-41,-41,-51,-43,-62,-42,-54,-59,-93,-92,-87,-70,-100,-38,-155,-145,-539,-512,-833,-825,-822,-788,-699,-643,-29989,-29990,-29990,-29991,-29994,-29995]} 1. d4 {[%emt 1:31:00]} Nf6 2. Nf3 g6 3. c4 Bg7 4. Nc3 d6 5. e4 Bg4 6. Be2 Bxf3 7. Bxf3 e5 8. Be3 Nc6 9. d5 Nd4 $1 10. Nb5 (10. Bxd4 $14 exd4 11. Qxd4) 10... Nxf3+ $11 11. Qxf3 a6 12. Nc3 {The position is equal.} b6 13. Qe2 h5 14. h4 Bh6 15. f3 Bxe3 16. Qxe3 Kf8 17. g3 Kg7 18. Kd2 Qd7 19. a4 Rhc8 20. b3 Rab8 21. Ke2 Qe7 22. Kf2 Nd7 23. Rhb1 a5 24. Kg2 Rf8 25. Nb5 {[%cal Bc3b5,Bb5a7,Ba7c6][%mdl 32]} Nc5 26. Na7 Rbe8 27. Nc6 Qd7 28. b4 axb4 29. Rxb4 f5 30. exf5 Rxf5 (30... Qxf5 $17 {aiming for ...Qc2+.} 31. Rb2 Ra8) 31. a5 (31. Rb2 $15) 31... Ref8 $17 32. axb6 $2 {[%mdl 8192] [#] White does not recover from this.} (32. Rf1 $17 {is a better chance.} bxa5 33. Nxa5) 32... Rxf3 $19 33. Qxf3 (33. Nxe5 $142 Rf2+ (33... Rxe3 $2 34. Nxd7 Nxd7 35. Ra7 $19) 34. Qxf2 Rxf2+ 35. Kxf2 Qf5+ (35... dxe5 36. b7 $11) 36. Nf3 Nd3+ 37. Ke3 Nxb4 38. b7 Qd3+ 39. Kf2) 33... Rxf3 34. Kxf3 Qf5+ 35. Kg2 Qc2+ 36. Kh3 Ne4 {Black mates.} 37. Rf1 Qe2 38. Rbb1 {[%emt 0:00:00]} g5 {[%emt 0:18:56] Weighted Error Value: White=0.81/Black=0.06 (flawless) .  Loses game:     	White=1     	---        Mistake:       	White=2     	Black=1      Inaccurate:     	White=2     	Black=1      OK:         	White=5     	Black=14     Best:        	White=1     	Black=2} ({Not} 38... Qxc4 39. b7 (39. bxc7 Qd3 $15) 39... Qc3 40. Kh2 (40. b8=B $2 Qxg3#) (40. Rg1 Nf2+ 41. Kg2 Ng4 42. Kh3 Qc2 43. Rh1 Nf2+ 44. Kg2 Ne4+ 45. Kh3 g5 46. hxg5 Nxg5+ 47. Kh4 Qf5 48. Nxe5 dxe5 49. b8=Q Qg4#) 40... Qxg3+ 41. Kh1 $11) 0-1

[Event "Dutch Meesterklasse 2024-25"]
[Site "Netherlands"]
[Date "2024.09.22"]
[Round "1.2"]
[White "Van Delft, Merijn"]
[Black "Van der Werf, Mark"]
[Result "0-1"]
[ECO "C93"]
[WhiteElo "2364"]
[BlackElo "2408"]
[Annotator "RC"]
[PlyCount "178"]
[EventDate "2024.09.21"]
[EventType "team-tourn"]
[EventCountry "NED"]
[SourceTitle "playchess.com"]
[Source "ChessBase"]
[SourceQuality "1"]
[TimeControl "40/5400+30:1800+30"]

1. e4 e5 2. Nf3 Nc6 3. Bb5 {[%emt 0:01:30]} a6 {[%emt 0:01:30]} 4. Ba4 {[%emt 0:00:30]} Nf6 {[%emt 0:00:30]} 5. O-O {[%emt 0:00:30]} Be7 {[%emt 0:00:30]} 6. Re1 {[%emt 0:00:30]} b5 {[%emt 0:00:30]} 7. Bb3 {[%emt 0:00:30]} d6 {[%emt 0:00:30]} 8. c3 {[%emt 0:00:30]} O-O {[%emt 0:00:30]} 9. h3 {[%emt 0:00:30]} Re8 {[%emt 0:00:30]} 10. Ng5 {[%emt 0:00:30]} Rf8 {[%emt 0:00:30]} 11. Nf3 {[%emt 0:00:30]} Re8 {[%emt 0:00:30]} 12. d4 {[%emt 0:00:30]} Bb7 {[%emt 0:00:30]} 13. Nbd2 {[%emt 0:00:30]} Bf8 {[%emt 0:00:30]} 14. a3 {[%emt 0:00:30]} h6 {[%emt 0:00:30]} 15. Bc2 {[%emt 0:00:30]} Nb8 {[%emt 0:00:30]} 16. b3 {[%emt 0:00:30]} Nbd7 {[%emt 0:00:30]} 17. Bb2 {[%emt 0:00:30]} Rb8 {[%emt 0:00:30]} 18. Rb1 {[%emt 0:00:30]} g6 {[%emt 0:00:30]} 19. Bd3 {[%emt 0:00:30]} Bg7 {[%emt 0:00:30]} 20. dxe5 {[%emt 0:00:30]} dxe5 {[%emt 0:00:30]} 21. c4 {[%emt 0:00:30]} Nc5 {[%emt 0:00:30]} 22. Bc2 {[%emt 0:00:30]} Nh5 {[%emt 0:00:30]} 23. Re3 {[%emt 0:00:30]} Nf4 {[%emt 0:00:30]} 24. Qf1 {[%emt 0:00:30]} Nce6 {[%emt 0:00:30]} 25. cxb5 {[%emt 0:00:30]} axb5 {[%emt 0:00:30]} 26. b4 {[%emt 0:00:30]} Nd4 {[%emt 0:00:30]} 27. Rc1 {[%emt 0:00:30]} Bc8 {[%emt 0:00:30]} 28. Bb1 {[%emt 0:00:30]} Be6 {[%emt 0:00:30]} 29. Rc5 {[%emt 0:00:30]} Nxf3+ {[%emt 0:00:30]} 30. Nxf3 {[%emt 0:00:30]} Bc4 {[%emt 0:00:30]} 31. Rxc4 {[%emt 0:00:30]} bxc4 {[%emt 0:00:30]} 32. Qxc4 {[%emt 0:00:30]} Qd7 {[%emt 0:00:30]} 33. Re1 {[%emt 0:00:30]} Rb6 {[%emt 0:00:30]} 34. Kh2 {[%emt 0:00:30]} Rc6 {[%emt 0:00:30]} 35. Qf1 {[%emt 0:00:30]} Rd6 {[%emt 0:00:30]} 36. Rc1 {[%emt 0:00:30]} Re7 {[%emt 0:00:30]} 37. g3 {[%emt 0:00:30]} Nd3 {[%emt 0:00:30]} 38. Bxd3 {[%emt 0:00:30]} Rxd3 {[%emt 0:00:30]} 39. Rxc7 {[%emt 0:00:30]} Qxc7 {[%emt 0:00:30]} 40. Qxd3 {[%emt 0:00:30]} Rd7 {[%emt 0:00:30]} 41. Qe2 {[%emt 0:30:30]} Qd6 {[%emt 0:30:30]} 42. Kg2 {[%emt 0:00:30]} Qd3 {[%emt 0:00:30]} 43. Qxd3 {[%emt 0:00:30]} Rxd3 {[%emt 0:00:30]} 44. Bxe5 {[%emt 0:00:30]} Rxa3 {[%emt 0:00:30]} 45. Bd6 {[%emt 0:00:30]} Bf8 {[%emt 0:00:30]} 46. Bxf8 {[%emt 0:00:30]} Kxf8 {[%emt 0:00:30]} 47. Ne5 {[%emt 0:00:30]} Rb3 {[%emt 0:00:30]} 48. h4 {[%emt 0:00:30]} Rxb4 {[%emt 0:59:57]} 49. Kf3 {[%emt 1:20:45]} Rb5 {[%emt 0:03:52]} 50. Ng4 {[%emt 0:01:16]} h5 {[%emt 0:00:08]} 51. Ne3 {[%emt 0:01:26]} Rb2 {[%emt 0:00:53]} 52. Nd5 {[%emt 0:00:24]} Kg7 {[%emt 0:00:39]} 53. Ke3 {[%emt 0:00:56]} Ra2 {[%emt 0:00:18]} 54. Kf3 {[%emt 0:00:28]} Kf8 {[%emt 0:00:09]} 55. Ke3 {[%emt 0:01:24]} Ke8 {[%emt 0:00:04]} 56. f3 {[%emt 0:01:12]} Kd7 {[%emt 0:00:46]} 57. Kf4 {[%emt 0:00:39]} Ra3 {[%emt 0:01:29]} 58. g4 {[%emt 0:01:29]} hxg4 {[%emt 0:04:33]} 59. fxg4 {[%emt 0:01:03]} Rh3 {[%emt 0:01:50]} 60. h5 {[%emt 0:00:35]} gxh5 {[%emt 0:01:01]} 61. Nf6+ {[%emt 0:02:24]} Ke6 {[%emt 0:00:34]} 62. Nxh5 {[%emt 0:00:12]} Rh1 {[%emt 0:00:30]} 63. Ng3 {[%emt 0:00:30]} Ra1 {[%emt 0:00:22]} 64. g5 {[%emt 0:01:43]} Rg1 {[%emt 0:01:35]} 65. Nh5 {[%emt 0:00:30]} Rf1+ {[%emt 0:00:40]} 66. Kg4 {[%emt 0:00:23]} Ke5 {[%emt 0:00:35]} 67. Nf6 {[%emt 0:00:10]} Rg1+ {[%emt 0:00:36]} 68. Kh5 {[%emt 0:02:14]} Kf4 {[%emt 0:06:30]} 69. Kh6 {[%emt 0:00:22]} Ke5 {[%emt 0:01:50]} 70. Nd7+ {[%emt 0:00:48]} Ke6 {[%emt 0:01:03]} 71. Nf6 {[%emt 0:00:15]} Ke7 {[%emt 0:00:47]} 72. Nd5+ {[%emt 0:00:21]} Kf8 {[%emt 0:00:10]} 73. Kh5 {[%emt 0:00:16]} Kg7 {[%emt 0:00:25]} 74. Ne7 {[%emt 0:01:09]} Re1 {[%emt 0:00:39]} 75. Nf5+ {[%emt 0:00:03]} Kf8 {[%emt 0:01:23]} 76. Ng3 {[%emt 0:00:11]} Ke7 {[%emt 0:01:28]} 77. Kg4 {[%emt 0:00:03]} Ke6 {[%emt 0:00:26]} 78. Kf4 {[%emt 0:00:17]} Rb1 {[%emt 0:00:29]} 79. Nh5 {[%emt 0:01:19]} Rf1+ {[%emt 0:01:10]} 80. Kg4 {[%emt 0:00:02]} Rh1 {[%emt 0:00:23]} 81. Ng3 {[%emt 0:01:12]} Rh2 {[%emt 0:00:23]} 82. Nh5 {[%emt 0:00:39]} Ke5 {[%emt 0:00:23]} 83. Nf6 {[%emt 0:00:29]} Rh1 {[%emt 0:00:38]} 84. Kg3 {[%emt 0:00:29]} Rg1+ {[%emt 0:00:08]} 85. Kh4 {[%emt 0:00:29]} Kf4 {[%emt 0:00:22]} 86. Nd5+ {[%emt 0:00:43]} Kxe4 {[%emt 0:00:08]} 87. Ne7 {[%emt 0:00:22]} Kf4 {[%emt 0:00:17]} 88. Nd5+ {[%emt 0:00:23]} Kf3 {[%emt 0:00:31]} 89. Nf6 {[%emt 0:00:04]} Rh1# {[%emt 0:00:42]} 0-1

[Event "Dutch Meesterklasse 2024-25"]
[Site "Netherlands"]
[Date "2024.09.22"]
[Round "1.2"]
[White "Smeets, Kobe"]
[Black "Fernandez, Daniel Howard"]
[Result "1-0"]
[ECO "C79"]
[WhiteElo "2335"]
[BlackElo "2524"]
[Annotator "TA"]
[PlyCount "77"]
[EventDate "2024.09.21"]
[EventType "team-tourn"]
[EventCountry "NED"]
[SourceTitle "playchess.com"]
[Source "ChessBase"]
[SourceQuality "1"]
[TimeControl "40/5400+30:1800+30"]

{[%evp 15,77,39,37,21,33,33,50,27,57,51,64,56,60,62,110,75,73,49,118,94,115,76,96,85,107,80,67,58,54,40,68,19,85,73,88,66,164,169,197,199,192,204,272,267,421,412,510,486,812,812,863,985,995,981,946,919,862,749,2079,1845,5018,3166,2669,2492]} 1. e4 {[%emt 0:00:03]} e5 {[%emt 0:00:14]} 2. Nf3 {[%emt 0:00:09]} Nc6 {[%emt 0:00:03]} 3. Bb5 {[%emt 0:00:11]} a6 {[%emt 0:00:55]} 4. Ba4 {[%emt 0:00:06]} Nf6 {[%emt 0:00:45]} 5. O-O {[%emt 0:00:09]} d6 {[%emt 0:00:52]} 6. Re1 {[%emt 0:00:04]} Bd7 {[%emt 0:02:07]} 7. c3 {[%emt 0:00:04]} g6 {[%emt 0:01:50]} 8. d4 {[%emt 0:00:05]} Bg7 {[%emt 0:01:59]} 9. h3 {[%emt 0:00:05]} O-O {[%emt 0:01:26]} 10. Bc2 {[%emt 0:00:04]} a5 {[%emt 0:07:48]} 11. a4 {[%emt 0:05:22] White is slightly better.} Kh8 {[%emt 0:09:55]} 12. Na3 {[%emt 0:05:35]} Ng8 {[%emt 0:05:34]} 13. Nc4 {[%emt 0:01:12]} exd4 {[%emt 0:02:55]} 14. cxd4 {[%emt 0:00:14]} Qb8 {[%emt 0:03:23]} (14... Nf6 $14) 15. Bf4 {[%emt 0:12:12]} Nb4 {[%emt 0:00:36]} 16. Bb3 {[%emt 0:01:57]} Qa7 {[%emt 0:10:10]} (16... b5 $14) 17. Qd2 {[%emt 0:04:43]} Rae8 {[%emt 0:05:53]} 18. Rad1 {[%emt 0:04:04]} b6 {[%emt 0:04:38]} 19. Rc1 {[%emt 0:12:46]} Nf6 {[%emt 0:14:48]} 20. e5 {[%emt 0:01:49]} (20. Nxd6 {with more complications.} cxd6 21. Bxd6 b5 22. Ng5) 20... Nfd5 {[%emt 0:00:02]} 21. Bg3 {[%emt 0:00:35]} (21. exd6 Nxf4 22. Qxf4 Nd3 $11) 21... dxe5 {[%emt 0:02:59]} 22. Ncxe5 {[%emt 0:01:43]} c6 {[%emt 0:03:27]} 23. Nxd7 {[%emt 0:02:38]} (23. Red1 $14) 23... Qxd7 {[%emt 0:00:05]} (23... Rxe1+ $1 $11 24. Rxe1 Qxd7) 24. Ne5 $36 {[%emt 0:01:23][%mdl 2048] White is on the roll. White stays focused until the end.} Qf5 {[%emt 0:04:31]} 25. Bh2 {[%emt 0:05:01]} Bxe5 {[%emt 0:11:24]} ({Better is} 25... h5 $14) 26. Bxe5+ $18 {[%emt 0:01:32]} ({But not} 26. dxe5 $6 Qd3 27. Qd1 Qxd1 28. Rcxd1 (28. Rexd1 Rc8 $16) 28... g5 $16) (26. Rxe5 $6 Qd7 $14) 26... Kg8 {[%emt 0:00:03] [#]} 27. Qh6 $1 {[%emt 0:12:33][%csl Ge5][%cal Rh6g7]} Rxe5 {[%emt 0:01:37]} 28. Rxe5 {[%emt 0:01:28]} ({Weaker is} 28. dxe5 Nd3 29. Bxd5 (29. Rxc6 $2 {too greedy.} Qxf2+ 30. Kh2 Qxe1 $19) 29... Qxf2+ 30. Kh1 Nxe1 (30... Nxc1 31. Bxf7+ Rxf7 32. Qxc1 $11) 31. Rxc6 Nd3 $14) 28... Qf6 {[%emt 0:00:01]} 29. Rce1 {[%emt 0:09:13][%cal Bc1e1,Be1e4,Be4h4][%mdl 32]} Qd8 {[%emt 0:01:32] Wards off Re8} (29... Qg7 {might work better.} 30. Qxg7+ Kxg7 31. Bxd5 Nxd5) 30. R1e4 {[%emt 0:02:55] And now Rh4 would win.} Nf6 {[%emt 0:01:27][%cal Ob4d3]} 31. Rh4 {[%emt 0:02:00] [#] Hoping for g4. White is clearly winning.} Nbd5 {[%emt 0:01:23]} (31... Re8 $142 32. Qg5 Nfd5 33. Rxe8+ Qxe8) 32. g4 {[%emt 0:02:06][%cal Bg2g4,Bg4g5][%mdl 32]} Ne7 {[%emt 0:01:09]} 33. g5 {[%emt 0:02:26]} Nh5 {[%emt 0:00:01]} 34. Bc2 {[%emt 0:00:11] White wants to mate with Rxh5.} f5 {[%emt 0:00:51]} 35. Rxh5 {[%emt 0:03:09]} gxh5 {[%emt 0:00:02]} 36. Qe6+ {[%emt 0:00:31]} Rf7 {[%emt 0:00:01]} 37. Bb3 {[%emt 0:00:19]} Nd5 {[%emt 0:00:02]} 38. Rxf5 {[%emt 0:00:26]} Qd7 {[%emt 0:00:25]} 39. Rxd5 {[%emt 0:02:13] Weighted Error Value: White=0.14 (very precise) /Black=0.38.  Mistake:       	White=1     	Black=6      Inaccurate:     	White=2     	Black=2      OK:         	White=2     	Black=3      Best:        	White=4     	Black=3      Strong:       	White=1     	---} 1-0

[Event "Dutch Meesterklasse 2024-25"]
[Site "Netherlands"]
[Date "2024.09.22"]
[Round "1.3"]
[White "Swinkels, Robin"]
[Black "Kuipers, Stefan"]
[Result "1/2-1/2"]
[ECO "E11"]
[WhiteElo "2512"]
[BlackElo "2457"]
[Annotator "TA"]
[PlyCount "95"]
[EventDate "2024.09.21"]
[EventType "team-tourn"]
[EventCountry "NED"]
[SourceTitle "playchess.com"]
[Source "ChessBase"]
[SourceQuality "1"]
[TimeControl "40/5400+30:1800+30"]

{[%evp 11,95,4,0,0,7,-1,18,3,25,16,18,-29,-13,-10,0,-22,0,0,6,0,33,23,25,25,40,-35,-27,-37,-38,-35,-33,-29,-38,-88,-74,-69,-65,-69,-54,-58,-53,-53,-53,-53,-53,-60,-66,-59,-52,-52,-58,-61,-61,-61,-61,-61,-54,-61,0,-61,-51,-61,-60,-61,-61,-61,-61,-61,-59,-59,0,-56,-56,-56,-56,-64,-50,-57,0,-57,0,-57,0,-57,0,-43]} 1. d4 {[%emt 0:00:30]} d5 {[%emt 0:00:30]} 2. c4 {[%emt 0:00:30]} e6 {[%emt 0:00:30]} 3. Nf3 {[%emt 0:00:30]} Nf6 {[%emt 0:00:30]} 4. g3 {[%emt 0:00:30]} Bb4+ {[%emt 0:00:30]} 5. Bd2 {[%emt 0:00:30]} Be7 {[%emt 0:00:30]} 6. Bg2 {[%emt 0:00:30]} c6 {[%emt 0:00:30]} 7. O-O {[%emt 0:00:30]} Nbd7 {[%emt 0:00:30]} 8. Bc3 {[%emt 0:00:30]} a5 {[%emt 0:00:30]} 9. b3 {[%emt 0:00:30]} b5 {[%emt 0:00:30]} 10. c5 {[%emt 0:00:30]} Ne4 {[%emt 0:00:30]} 11. a3 {[%emt 0:00:30]} (11. Bb2 {should be considered.}) 11... h5 {[%emt 0:00:30][%cal Bh7h5,Bh5h4,Bh4h3][%mdl 32]} 12. b4 {[%emt 0:00:30]} Qc7 {[%emt 0:00:30]} 13. Qc2 {[%emt 0:00:30]} h4 {[%emt 0:00:30]} 14. Nbd2 {[%emt 0:00:30]} Nxc3 {[%emt 0:00:30]} 15. Qxc3 {[%emt 0:00:30]} f5 {[%emt 0:00:30]} 16. Qe3 {[%emt 0:00:30] Dodges g5} h3 {[%emt 0:00:30]} 17. Bh1 {[%emt 0:00:30]} Rh6 {[%emt 0:00:30]} 18. Rfb1 {[%emt 0:00:30]} (18. a4 $14) 18... a4 $15 {[%emt 0:00:30]} 19. Qf4 {[%emt 0:00:30]} Qd8 {[%emt 0:00:30]} ({But not} 19... Qxf4 $6 20. gxf4 Rh7 21. e3 $16) 20. Qe3 {[%emt 0:00:30]} g5 {[%emt 0:00:30]} 21. Kf1 {[%emt 0:00:30]} Rg6 {[%emt 0:00:30]} 22. Ng1 {[%emt 0:00:30]} (22. Ne5 $15 Nxe5 23. dxe5) 22... g4 $17 {[%emt 0:00:30]} 23. f4 {[%emt 0:00:30]} Kf7 {[%emt 0:00:30]} 24. Qc3 {[%emt 0:00:30]} Bf6 {[%emt 0:00:30]} 25. Rd1 {[%emt 0:00:30]} Nb8 {[%emt 0:00:30]} 26. e3 {[%emt 0:00:30]} Rg8 {[%emt 0:00:30]} 27. Ne2 {[%emt 0:00:30]} Kg7 {[%emt 0:00:30]} 28. Nc1 {[%emt 0:00:30]} Na6 {[%emt 0:00:30]} 29. Nd3 {[%emt 0:00:30]} Bd7 {[%emt 0:00:30]} 30. Rac1 {[%emt 0:00:30]} Nc7 {[%emt 0:00:30]} 31. Qc2 {[%emt 0:00:30]} Qe7 {[%emt 0:00:30]} 32. Nb1 {[%emt 0:00:30]} Rac8 {[%emt 0:00:30]} 33. Nc3 {[%emt 0:00:30]} Rb8 {[%emt 0:00:30]} 34. Kg1 {[%emt 0:00:30]} Rbc8 {[%emt 0:00:30]} (34... Rbf8 $15) 35. Ne5 {[%emt 0:00:30]} (35. Kf1 $1 $11) 35... Kh6 {[%emt 0:00:30]} 36. Rf1 {[%emt 0:00:30]} Rcf8 {[%emt 0:00:30]} 37. Rcd1 {[%emt 0:00:30]} Be8 {[%emt 0:00:30]} 38. Qe2 {[%emt 0:00:30]} Qg7 {[%emt 0:00:30]} 39. Rf2 {[%emt 0:00:30]} Bd8 {[%emt 0:00:30]} 40. Kf1 {[%emt 0:00:30]} Bf6 {[%emt 0:00:30]} (40... Be7 $15) 41. Ke1 {[%emt 0:30:30]} (41. Kg1 $1 $11) 41... Kh7 $15 {[%emt 0:30:30]} 42. Kd2 {[%emt 0:00:30]} Kh8 {[%emt 0:00:30]} 43. Kc1 {[%emt 0:00:30]} Bd8 {[%emt 0:00:30]} 44. Rd2 {[%emt 0:00:30]} Bf6 {[%emt 0:00:30]} ({Black should try} 44... Qh7 $15) 45. Rf1 {[%emt 0:00:30]} (45. Rd1 $1 $11) 45... Bd8 {[%emt 0:00:30]} (45... Kh7 $15) 46. Nd1 {[%emt 0:00:30]} ({White should play} 46. Rf2 $1 $11) 46... Bf6 {[%emt 0:00:30]} (46... Qh7 $15) 47. Nf2 {[%emt 0:00:30]} ({Better is} 47. Nc3 $1 $11) 47... Bd8 {[%emt 0:00:30]} (47... Qe7 $15) 48. Nfd3 {[%emt 0:00:30] Weighted Error Value: White=0.17 (very precise) /Black=0.14 (very precise) .  Mistake:       	White=8     	Black=6      Inaccurate:     	White=1     	Black=1      OK:         	White=10    	Black=10} 1/2-1/2